Workbook

Sheet 专职辅导员1
A1: 贵州师范大学2024年公开招聘工作人员专职辅导员1岗位总成绩
A2: 序号 | B2: 姓名 | C2: 报考岗位 | D2: 岗位代码 | E2: 准考证号 | F2: 总成绩 | G2: 是否进入 体检环节
A3: 1 | B3: 陆泓辰 | C3: 专职辅导员1 | D3: 22828440101 | E3: 1152281108102 | F3: =VLOOKUP(B3,[1]专职辅导员1!$B:$I,8,FALSE) -> 77.96 | G3: =VLOOKUP(B3,[1]专职辅导员1!$B:$J,9,FALSE) -> 是
A4: 2 | B4: 梁佳茵 | C4: 专职辅导员1 | D4: 22828440101 | E4: 1152281109522 | F4: =VLOOKUP(B4,[1]专职辅导员1!$B:$I,8,FALSE) -> 76.92 | G4: =VLOOKUP(B4,[1]专职辅导员1!$B:$J,9,FALSE) -> 是
A5: 3 | B5: 王维胜 | C5: 专职辅导员1 | D5: 22828440101 | E5: 1152281110405 | F5: =VLOOKUP(B5,[1]专职辅导员1!$B:$I,8,FALSE) -> 79.13 | G5: =VLOOKUP(B5,[1]专职辅导员1!$B:$J,9,FALSE) -> 是
A6: 4 | B6: 梁家敏 | C6: 专职辅导员1 | D6: 22828440101 | E6: 1152281108313 | F6: =VLOOKUP(B6,[1]专职辅导员1!$B:$I,8,FALSE) -> 77.99 | G6: =VLOOKUP(B6,[1]专职辅导员1!$B:$J,9,FALSE) -> 是
A7: 5 | B7: 张玲娜 | C7: 专职辅导员1 | D7: 22828440101 | E7: 1152281109503 | F7: =VLOOKUP(B7,[1]专职辅导员1!$B:$I,8,FALSE) -> 72.85 | G7: =VLOOKUP(B7,[1]专职辅导员1!$B:$J,9,FALSE) -> 否
A8: 6 | B8: 赵燕绮 | C8: 专职辅导员1 | D8: 22828440101 | E8: 1152281113127 | F8: =VLOOKUP(B8,[1]专职辅导员1!$B:$I,8,FALSE) -> 76.37 | G8: =VLOOKUP(B8,[1]专职辅导员1!$B:$J,9,FALSE) -> 是
A9: 7 | B9: 孙瑜霞 | C9: 专职辅导员1 | D9: 22828440101 | E9: 1152281113406 | F9: =VLOOKUP(B9,[1]专职辅导员1!$B:$I,8,FALSE) -> 70.60 | G9: =VLOOKUP(B9,[1]专职辅导员1!$B:$J,9,FALSE) -> 否
A10: 8 | B10: 胡莲宇 | C10: 专职辅导员1 | D10: 22828440101 | E10: 1152281107316 | F10: =VLOOKUP(B10,[1]专职辅导员1!$B:$I,8,FALSE) -> 76.95 | G10: =VLOOKUP(B10,[1]专职辅导员1!$B:$J,9,FALSE) -> 是
A11: 9 | B11: 谢林易 | C11: 专职辅导员1 | D11: 22828440101 | E11: 1152281110112 | F11: =VLOOKUP(B11,[1]专职辅导员1!$B:$I,8,FALSE) -> 74.96 | G11: =VLOOKUP(B11,[1]专职辅导员1!$B:$J,9,FALSE) -> 否
A12: 10 | B12: 胡懿园 | C12: 专职辅导员1 | D12: 22828440101 | E12: 1152281107413 | F12: =VLOOKUP(B12,[1]专职辅导员1!$B:$I,8,FALSE) -> 76.97 | G12: =VLOOKUP(B12,[1]专职辅导员1!$B:$J,9,FALSE) -> 是
A13: 11 | B13: 王正敏 | C13: 专职辅导员1 | D13: 22828440101 | E13: 1152281105923 | F13: =VLOOKUP(B13,[1]专职辅导员1!$B:$I,8,FALSE) -> 72.77 | G13: =VLOOKUP(B13,[1]专职辅导员1!$B:$J,9,FALSE) -> 否
A14: 12 | B14: 吕宝馨 | C14: 专职辅导员1 | D14: 22828440101 | E14: 1152281106102 | F14: =VLOOKUP(B14,[1]专职辅导员1!$B:$I,8,FALSE) -> 75.86 | G14: =VLOOKUP(B14,[1]专职辅导员1!$B:$J,9,FALSE) -> 是
A15: 13 | B15: 李玉婷 | C15: 专职辅导员1 | D15: 22828440101 | E15: 1152281110515 | F15: 面试缺考 | G15: =VLOOKUP(B15,[1]专职辅导员1!$B:$J,9,FALSE) -> 否
A16: 14 | B16: 陆骁 | C16: 专职辅导员1 | D16: 22828440101 | E16: 1152281108227 | F16: =VLOOKUP(B16,[1]专职辅导员1!$B:$I,8,FALSE) -> 70.61 | G16: =VLOOKUP(B16,[1]专职辅导员1!$B:$J,9,FALSE) -> 否
A17: 15 | B17: 唐芳林 | C17: 专职辅导员1 | D17: 22828440101 | E17: 1152281111820 | F17: =VLOOKUP(B17,[1]专职辅导员1!$B:$I,8,FALSE) -> 75.52 | G17: =VLOOKUP(B17,[1]专职辅导员1!$B:$J,9,FALSE) -> 否
A18: 16 | B18: 杨正杰 | C18: 专职辅导员1 | D18: 22828440101 | E18: 1152281107602 | F18: =VLOOKUP(B18,[1]专职辅导员1!$B:$I,8,FALSE) -> 75.69 | G18: =VLOOKUP(B18,[1]专职辅导员1!$B:$J,9,FALSE) -> 否
A19: 17 | B19: 杨羚 | C19: 专职辅导员1 | D19: 22828440101 | E19: 1152281110004 | F19: 面试缺考 | G19: =VLOOKUP(B19,[1]专职辅导员1!$B:$J,9,FALSE) -> 否
A20: 18 | B20: 张兴红 | C20: 专职辅导员1 | D20: 22828440101 | E20: 1152281106712 | F20: =VLOOKUP(B20,[1]专职辅导员1!$B:$I,8,FALSE) -> 73.51 | G20: =VLOOKUP(B20,[1]专职辅导员1!$B:$J,9,FALSE) -> 否
A21: 19 | B21: 滕思佳 | C21: 专职辅导员1 | D21: 22828440101 | E21: 1152281109218 | F21: =VLOOKUP(B21,[1]专职辅导员1!$B:$I,8,FALSE) -> 75.23 | G21: =VLOOKUP(B21,[1]专职辅导员1!$B:$J,9,FALSE) -> 否
A22: 20 | B22: 陈洪梅 | C22: 专职辅导员1 | D22: 22828440101 | E22: 1152281110807 | F22: =VLOOKUP(B22,[1]专职辅导员1!$B:$I,8,FALSE) -> 73.27 | G22: =VLOOKUP(B22,[1]专职辅导员1!$B:$J,9,FALSE) -> 否
A23: 21 | B23: 党小惠 | C23: 专职辅导员1 | D23: 22828440101 | E23: 1152281112807 | F23: =VLOOKUP(B23,[1]专职辅导员1!$B:$I,8,FALSE) -> 72.63 | G23: =VLOOKUP(B23,[1]专职辅导员1!$B:$J,9,FALSE) -> 否
A24: 22 | B24: 郜永琴 | C24: 专职辅导员1 | D24: 22828440101 | E24: 1152281108818 | F24: =VLOOKUP(B24,[1]专职辅导员1!$B:$I,8,FALSE) -> 70.62 | G24: =VLOOKUP(B24,[1]专职辅导员1!$B:$J,9,FALSE) -> 否
A25: 23 | B25: 陆方筱 | C25: 专职辅导员1 | D25: 22828440101 | E25: 1152281111625 | F25: =VLOOKUP(B25,[1]专职辅导员1!$B:$I,8,FALSE) -> 68.05 | G25: =VLOOKUP(B25,[1]专职辅导员1!$B:$J,9,FALSE) -> 否
A26: 24 | B26: 蒋正婷 | C26: 专职辅导员1 | D26: 22828440101 | E26: 1152281111607 | F26: =VLOOKUP(B26,[1]专职辅导员1!$B:$I,8,FALSE) -> 70.69 | G26: =VLOOKUP(B26,[1]专职辅导员1!$B:$J,9,FALSE) -> 否

Sheet 专职辅导员2
A1: 贵州师范大学2024年公开招聘工作人员专职辅导员2岗位总成绩
A2: 序号 | B2: 姓名 | C2: 报考岗位 | D2: 岗位代码 | E2: 准考证号 | F2: 总成绩 | G2: 是否进入 体检环节
A3: 1 | B3: 夏瑛奇 | C3: 专职辅导员2 | D3: 22828440102 | E3: 1152281108403 | F3: =VLOOKUP(B3,[1]专职辅导员2!$B:$I,8,FALSE) -> 73.28 | G3: =VLOOKUP(B3,[1]专职辅导员2!$B:$J,9,FALSE) -> 是
A4: 2 | B4: 简单 | C4: 专职辅导员2 | D4: 22828440102 | E4: 1152281106408 | F4: =VLOOKUP(B4,[1]专职辅导员2!$B:$I,8,FALSE) -> 74.25 | G4: =VLOOKUP(B4,[1]专职辅导员2!$B:$J,9,FALSE) -> 是
A5: 3 | B5: 李更菲 | C5: 专职辅导员2 | D5: 22828440102 | E5: 1152281113216 | F5: =VLOOKUP(B5,[1]专职辅导员2!$B:$I,8,FALSE) -> 75.09 | G5: =VLOOKUP(B5,[1]专职辅导员2!$B:$J,9,FALSE) -> 是
A6: 4 | B6: 冯燕 | C6: 专职辅导员2 | D6: 22828440102 | E6: 1152281106311 | F6: =VLOOKUP(B6,[1]专职辅导员2!$B:$I,8,FALSE) -> 73.39 | G6: =VLOOKUP(B6,[1]专职辅导员2!$B:$J,9,FALSE) -> 是
A7: 5 | B7: 周丽玲 | C7: 专职辅导员2 | D7: 22828440102 | E7: 1152281111603 | F7: =VLOOKUP(B7,[1]专职辅导员2!$B:$I,8,FALSE) -> 76.18 | G7: =VLOOKUP(B7,[1]专职辅导员2!$B:$J,9,FALSE) -> 是
A8: 6 | B8: 何敏 | C8: 专职辅导员2 | D8: 22828440102 | E8: 1152281114001 | F8: =VLOOKUP(B8,[1]专职辅导员2!$B:$I,8,FALSE) -> 73.06 | G8: =VLOOKUP(B8,[1]专职辅导员2!$B:$J,9,FALSE) -> 否
A9: 7 | B9: 张翔 | C9: 专职辅导员2 | D9: 22828440102 | E9: 1152281109601 | F9: =VLOOKUP(B9,[1]专职辅导员2!$B:$I,8,FALSE) -> 78.93 | G9: =VLOOKUP(B9,[1]专职辅导员2!$B:$J,9,FALSE) -> 是
A10: 8 | B10: 石丹妮 | C10: 专职辅导员2 | D10: 22828440102 | E10: 1152281113408 | F10: =VLOOKUP(B10,[1]专职辅导员2!$B:$I,8,FALSE) -> 78.72 | G10: =VLOOKUP(B10,[1]专职辅导员2!$B:$J,9,FALSE) -> 是
A11: 9 | B11: 王兴玥 | C11: 专职辅导员2 | D11: 22828440102 | E11: 1152281110411 | F11: =VLOOKUP(B11,[1]专职辅导员2!$B:$I,8,FALSE) -> 73.07 | G11: =VLOOKUP(B11,[1]专职辅导员2!$B:$J,9,FALSE) -> 否
A12: 10 | B12: 张译心 | C12: 专职辅导员2 | D12: 22828440102 | E12: 1152281105727 | F12: =VLOOKUP(B12,[1]专职辅导员2!$B:$I,8,FALSE) -> 75.70 | G12: =VLOOKUP(B12,[1]专职辅导员2!$B:$J,9,FALSE) -> 是
A13: 11 | B13: 张蝶 | C13: 专职辅导员2 | D13: 22828440102 | E13: 1152281112223 | F13: =VLOOKUP(B13,[1]专职辅导员2!$B:$I,8,FALSE) -> 70.36 | G13: =VLOOKUP(B13,[1]专职辅导员2!$B:$J,9,FALSE) -> 否
A14: 12 | B14: 卫潇 | C14: 专职辅导员2 | D14: 22828440102 | E14: 1152281113303 | F14: =VLOOKUP(B14,[1]专职辅导员2!$B:$I,8,FALSE) -> 72.63 | G14: =VLOOKUP(B14,[1]专职辅导员2!$B:$J,9,FALSE) -> 否
A15: 13 | B15: 马晴 | C15: 专职辅导员2 | D15: 22828440102 | E15: 1152281108621 | F15: =VLOOKUP(B15,[1]专职辅导员2!$B:$I,8,FALSE) -> 71.23 | G15: =VLOOKUP(B15,[1]专职辅导员2!$B:$J,9,FALSE) -> 否
A16: 14 | B16: 田鋆 | C16: 专职辅导员2 | D16: 22828440102 | E16: 1152281110204 | F16: =VLOOKUP(B16,[1]专职辅导员2!$B:$I,8,FALSE) -> 71.41 | G16: =VLOOKUP(B16,[1]专职辅导员2!$B:$J,9,FALSE) -> 否
A17: 15 | B17: 张欣悦 | C17: 专职辅导员2 | D17: 22828440102 | E17: 1152281109022 | F17: =VLOOKUP(B17,[1]专职辅导员2!$B:$I,8,FALSE) -> 72.73 | G17: =VLOOKUP(B17,[1]专职辅导员2!$B:$J,9,FALSE) -> 否
A18: 16 | B18: 廖绍栩 | C18: 专职辅导员2 | D18: 22828440102 | E18: 1152281107513 | F18: =VLOOKUP(B18,[1]专职辅导员2!$B:$I,8,FALSE) -> 78.67 | G18: =VLOOKUP(B18,[1]专职辅导员2!$B:$J,9,FALSE) -> 是
A19: 17 | B19: 杨顺佳 | C19: 专职辅导员2 | D19: 22828440102 | E19: 1152281109511 | F19: =VLOOKUP(B19,[1]专职辅导员2!$B:$I,8,FALSE) -> 73.92 | G19: =VLOOKUP(B19,[1]专职辅导员2!$B:$J,9,FALSE) -> 是
A20: 18 | B20: 王发云 | C20: 专职辅导员2 | D20: 22828440102 | E20: 1152281106224 | F20: 面试缺考 | G20: =VLOOKUP(B20,[1]专职辅导员2!$B:$J,9,FALSE) -> 否
A21: 19 | B21: 马肖远 | C21: 专职辅导员2 | D21: 22828440102 | E21: 1152281110301 | F21: =VLOOKUP(B21,[1]专职辅导员2!$B:$I,8,FALSE) -> 73.13 | G21: =VLOOKUP(B21,[1]专职辅导员2!$B:$J,9,FALSE) -> 是
A22: 20 | B22: 董小方 | C22: 专职辅导员2 | D22: 22828440102 | E22: 1152281113320 | F22: 面试缺考 | G22: =VLOOKUP(B22,[1]专职辅导员2!$B:$J,9,FALSE) -> 否
A23: 21 | B23: 成美君 | C23: 专职辅导员2 | D23: 22828440102 | E23: 1152281112524 | F23: =VLOOKUP(B23,[1]专职辅导员2!$B:$I,8,FALSE) -> 72.57 | G23: =VLOOKUP(B23,[1]专职辅导员2!$B:$J,9,FALSE) -> 否
A24: 22 | B24: 何相亿 | C24: 专职辅导员2 | D24: 22828440102 | E24: 1152281112305 | F24: =VLOOKUP(B24,[1]专职辅导员2!$B:$I,8,FALSE) -> 72.39 | G24: =VLOOKUP(B24,[1]专职辅导员2!$B:$J,9,FALSE) -> 否
A25: 23 | B25: 刘乾义 | C25: 专职辅导员2 | D25: 22828440102 | E25: 1152281112615 | F25: =VLOOKUP(B25,[1]专职辅导员2!$B:$I,8,FALSE) -> 76.27 | G25: =VLOOKUP(B25,[1]专职辅导员2!$B:$J,9,FALSE) -> 是
A26: 24 | B26: 蒋潇檬 | C26: 专职辅导员2 | D26: 22828440102 | E26: 1152281113022 | F26: 面试缺考 | G26: =VLOOKUP(B26,[1]专职辅导员2!$B:$J,9,FALSE) -> 否
A27: 25 | B27: 韦育绒 | C27: 专职辅导员2 | D27: 22828440102 | E27: 1152281110607 | F27: =VLOOKUP(B27,[1]专职辅导员2!$B:$I,8,FALSE) -> 69.36 | G27: =VLOOKUP(B27,[1]专职辅导员2!$B:$J,9,FALSE) -> 否
A28: 26 | B28: 谭娅 | C28: 专职辅导员2 | D28: 22828440102 | E28: 1152281113008 | F28: =VLOOKUP(B28,[1]专职辅导员2!$B:$I,8,FALSE) -> 70.79 | G28: =VLOOKUP(B28,[1]专职辅导员2!$B:$J,9,FALSE) -> 否
A29: 27 | B29: 何紫晶 | C29: 专职辅导员2 | D29: 22828440102 | E29: 1152281106923 | F29: =VLOOKUP(B29,[1]专职辅导员2!$B:$I,8,FALSE) -> 77.69 | G29: =VLOOKUP(B29,[1]专职辅导员2!$B:$J,9,FALSE) -> 是
A30: 28 | B30: 徐昭通 | C30: 专职辅导员2 | D30: 22828440102 | E30: 1152281111309 | F30: =VLOOKUP(B30,[1]专职辅导员2!$B:$I,8,FALSE) -> 76.85 | G30: =VLOOKUP(B30,[1]专职辅导员2!$B:$J,9,FALSE) -> 是
A31: 29 | B31: 彭昱竹 | C31: 专职辅导员2 | D31: 22828440102 | E31: 1152281111703 | F31: =VLOOKUP(B31,[1]专职辅导员2!$B:$I,8,FALSE) -> 72.17 | G31: =VLOOKUP(B31,[1]专职辅导员2!$B:$J,9,FALSE) -> 否
A32: 30 | B32: 姚娟 | C32: 专职辅导员2 | D32: 22828440102 | E32: 1152281109909 | F32: =VLOOKUP(B32,[1]专职辅导员2!$B:$I,8,FALSE) -> 74.87 | G32: =VLOOKUP(B32,[1]专职辅导员2!$B:$J,9,FALSE) -> 是
A33: 31 | B33: 郑菊 | C33: 专职辅导员2 | D33: 22828440102 | E33: 1152281107120 | F33: =VLOOKUP(B33,[1]专职辅导员2!$B:$I,8,FALSE) -> 70.79 | G33: =VLOOKUP(B33,[1]专职辅导员2!$B:$J,9,FALSE) -> 否
A34: 32 | B34: 刘子瑜 | C34: 专职辅导员2 | D34: 22828440102 | E34: 1152281112502 | F34: =VLOOKUP(B34,[1]专职辅导员2!$B:$I,8,FALSE) -> 73.95 | G34: =VLOOKUP(B34,[1]专职辅导员2!$B:$J,9,FALSE) -> 是
A35: 33 | B35: 胡婷婷 | C35: 专职辅导员2 | D35: 22828440102 | E35: 1152281109106 | F35: =VLOOKUP(B35,[1]专职辅导员2!$B:$I,8,FALSE) -> 72.33 | G35: =VLOOKUP(B35,[1]专职辅导员2!$B:$J,9,FALSE) -> 否
A36: 34 | B36: 蔡胜 | C36: 专职辅导员2 | D36: 22828440102 | E36: 1152281113906 | F36: 面试缺考 | G36: =VLOOKUP(B36,[1]专职辅导员2!$B:$J,9,FALSE) -> 否
A37: 35 | B37: 陈跃芳 | C37: 专职辅导员2 | D37: 22828440102 | E37: 1152281107809 | F37: =VLOOKUP(B37,[1]专职辅导员2!$B:$I,8,FALSE) -> 71.96 | G37: =VLOOKUP(B37,[1]专职辅导员2!$B:$J,9,FALSE) -> 否
A38: 36 | B38: 何睿 | C38: 专职辅导员2 | D38: 22828440102 | E38: 1152281113023 | F38: =VLOOKUP(B38,[1]专职辅导员2!$B:$I,8,FALSE) -> 69.92 | G38: =VLOOKUP(B38,[1]专职辅导员2!$B:$J,9,FALSE) -> 否
A39: 37 | B39: 郑佳薇 | C39: 专职辅导员2 | D39: 22828440102 | E39: 1152281113518 | F39: =VLOOKUP(B39,[1]专职辅导员2!$B:$I,8,FALSE) -> 69.08 | G39: =VLOOKUP(B39,[1]专职辅导员2!$B:$J,9,FALSE) -> 否
A40: 38 | B40: 安旭 | C40: 专职辅导员2 | D40: 22828440102 | E40: 1152281111622 | F40: =VLOOKUP(B40,[1]专职辅导员2!$B:$I,8,FALSE) -> 75.49 | G40: =VLOOKUP(B40,[1]专职辅导员2!$B:$J,9,FALSE) -> 是
A41: 39 | B41: 陈颖 | C41: 专职辅导员2 | D41: 22828440102 | E41: 1152281113105 | F41: =VLOOKUP(B41,[1]专职辅导员2!$B:$I,8,FALSE) -> 67.93 | G41: =VLOOKUP(B41,[1]专职辅导员2!$B:$J,9,FALSE) -> 否
A42: 40 | B42: 王姣 | C42: 专职辅导员2 | D42: 22828440102 | E42: 1152281109116 | F42: =VLOOKUP(B42,[1]专职辅导员2!$B:$I,8,FALSE) -> 72.49 | G42: =VLOOKUP(B42,[1]专职辅导员2!$B:$J,9,FALSE) -> 否
A43: 41 | B43: 王雪 | C43: 专职辅导员2 | D43: 22828440102 | E43: 1152281109926 | F43: =VLOOKUP(B43,[1]专职辅导员2!$B:$I,8,FALSE) -> 67.51 | G43: =VLOOKUP(B43,[1]专职辅导员2!$B:$J,9,FALSE) -> 否
A44: 42 | B44: 王琴 | C44: 专职辅导员2 | D44: 22828440102 | E44: 1152281107519 | F44: =VLOOKUP(B44,[1]专职辅导员2!$B:$I,8,FALSE) -> 69.19 | G44: =VLOOKUP(B44,[1]专职辅导员2!$B:$J,9,FALSE) -> 否
A45: 43 | B45: 李丹 | C45: 专职辅导员2 | D45: 22828440102 | E45: 1152281113124 | F45: =VLOOKUP(B45,[1]专职辅导员2!$B:$I,8,FALSE) -> 77.34 | G45: =VLOOKUP(B45,[1]专职辅导员2!$B:$J,9,FALSE) -> 是
A46: 44 | B46: 谢莎莎 | C46: 专职辅导员2 | D46: 22828440102 | E46: 1152281108301 | F46: =VLOOKUP(B46,[1]专职辅导员2!$B:$I,8,FALSE) -> 69.66 | G46: =VLOOKUP(B46,[1]专职辅导员2!$B:$J,9,FALSE) -> 否
A47: 45 | B47: 孔威 | C47: 专职辅导员2 | D47: 22828440102 | E47: 1152281110315 | F47: =VLOOKUP(B47,[1]专职辅导员2!$B:$I,8,FALSE) -> 68.93 | G47: =VLOOKUP(B47,[1]专职辅导员2!$B:$J,9,FALSE) -> 否
A48: 46 | B48: 李慧 | C48: 专职辅导员2 | D48: 22828440102 | E48: 1152281110007 | F48: =VLOOKUP(B48,[1]专职辅导员2!$B:$I,8,FALSE) -> 70.01 | G48: =VLOOKUP(B48,[1]专职辅导员2!$B:$J,9,FALSE) -> 否
A49: 47 | B49: 闵莉媛 | C49: 专职辅导员2 | D49: 22828440102 | E49: 1152281106003 | F49: =VLOOKUP(B49,[1]专职辅导员2!$B:$I,8,FALSE) -> 71.21 | G49: =VLOOKUP(B49,[1]专职辅导员2!$B:$J,9,FALSE) -> 否
A50: 48 | B50: 岳红玉 | C50: 专职辅导员2 | D50: 22828440102 | E50: 1152281111017 | F50: =VLOOKUP(B50,[1]专职辅导员2!$B:$I,8,FALSE) -> 69.17 | G50: =VLOOKUP(B50,[1]专职辅导员2!$B:$J,9,FALSE) -> 否
A51: 49 | B51: 刘珊 | C51: 专职辅导员2 | D51: 22828440102 | E51: 1152281112710 | F51: =VLOOKUP(B51,[1]专职辅导员2!$B:$I,8,FALSE) -> 69.77 | G51: =VLOOKUP(B51,[1]专职辅导员2!$B:$J,9,FALSE) -> 否
A52: 50 | B52: 梁琴 | C52: 专职辅导员2 | D52: 22828440102 | E52: 1152281113013 | F52: =VLOOKUP(B52,[1]专职辅导员2!$B:$I,8,FALSE) -> 67.91 | G52: =VLOOKUP(B52,[1]专职辅导员2!$B:$J,9,FALSE) -> 否
A53: 51 | B53: 吴徐皝 | C53: 专职辅导员2 | D53: 22828440102 | E53: 1152281108220 | F53: =VLOOKUP(B53,[1]专职辅导员2!$B:$I,8,FALSE) -> 77.98 | G53: =VLOOKUP(B53,[1]专职辅导员2!$B:$J,9,FALSE) -> 是
A54: 52 | B54: 刘建明 | C54: 专职辅导员2 | D54: 22828440102 | E54: 1152281106617 | F54: =VLOOKUP(B54,[1]专职辅导员2!$B:$I,8,FALSE) -> 70.12 | G54: =VLOOKUP(B54,[1]专职辅导员2!$B:$J,9,FALSE) -> 否
A55: 53 | B55: 李塽爽 | C55: 专职辅导员2 | D55: 22828440102 | E55: 1152281107804 | F55: =VLOOKUP(B55,[1]专职辅导员2!$B:$I,8,FALSE) -> 69.70 | G55: =VLOOKUP(B55,[1]专职辅导员2!$B:$J,9,FALSE) -> 否
A56: 54 | B56: 吴小丽 | C56: 专职辅导员2 | D56: 22828440102 | E56: 1152281106704 | F56: =VLOOKUP(B56,[1]专职辅导员2!$B:$I,8,FALSE) -> 70.29 | G56: =VLOOKUP(B56,[1]专职辅导员2!$B:$J,9,FALSE) -> 否
A57: 55 | B57: 龙瑜 | C57: 专职辅导员2 | D57: 22828440102 | E57: 1152281112421 | F57: =VLOOKUP(B57,[1]专职辅导员2!$B:$I,8,FALSE) -> 67.59 | G57: =VLOOKUP(B57,[1]专职辅导员2!$B:$J,9,FALSE) -> 否
A58: 56 | B58: 马斯怡 | C58: 专职辅导员2 | D58: 22828440102 | E58: 1152281110416 | F58: =VLOOKUP(B58,[1]专职辅导员2!$B:$I,8,FALSE) -> 65.79 | G58: =VLOOKUP(B58,[1]专职辅导员2!$B:$J,9,FALSE) -> 否
A59: 57 | B59: 李荣莲 | C59: 专职辅导员2 | D59: 22828440102 | E59: 1152281110307 | F59: =VLOOKUP(B59,[1]专职辅导员2!$B:$I,8,FALSE) -> 68.24 | G59: =VLOOKUP(B59,[1]专职辅导员2!$B:$J,9,FALSE) -> 否
A60: 58 | B60: 王迎迎 | C60: 专职辅导员2 | D60: 22828440102 | E60: 1152281111729 | F60: =VLOOKUP(B60,[1]专职辅导员2!$B:$I,8,FALSE) -> 76.10 | G60: =VLOOKUP(B60,[1]专职辅导员2!$B:$J,9,FALSE) -> 是
A61: 59 | B61: 邱婷 | C61: 专职辅导员2 | D61: 22828440102 | E61: 1152281112826 | F61: =VLOOKUP(B61,[1]专职辅导员2!$B:$I,8,FALSE) -> 69.49 | G61: =VLOOKUP(B61,[1]专职辅导员2!$B:$J,9,FALSE) -> 否
A62: 60 | B62: 熊丽莎 | C62: 专职辅导员2 | D62: 22828440102 | E62: 1152281113621 | F62: =VLOOKUP(B62,[1]专职辅导员2!$B:$I,8,FALSE) -> 70.81 | G62: =VLOOKUP(B62,[1]专职辅导员2!$B:$J,9,FALSE) -> 否
A63: 61 | B63: 张佳佳 | C63: 专职辅导员2 | D63: 22828440102 | E63: 1152281106901 | F63: =VLOOKUP(B63,[1]专职辅导员2!$B:$I,8,FALSE) -> 66.73 | G63: =VLOOKUP(B63,[1]专职辅导员2!$B:$J,9,FALSE) -> 否
A64: 62 | B64: 罗裔 | C64: 专职辅导员2 | D64: 22828440102 | E64: 1152281108613 | F64: =VLOOKUP(B64,[1]专职辅导员2!$B:$I,8,FALSE) -> 74.23 | G64: =VLOOKUP(B64,[1]专职辅导员2!$B:$J,9,FALSE) -> 是
A65: 63 | B65: 唐油 | C65: 专职辅导员2 | D65: 22828440102 | E65: 1152281105622 | F65: =VLOOKUP(B65,[1]专职辅导员2!$B:$I,8,FALSE) -> 66.79 | G65: =VLOOKUP(B65,[1]专职辅导员2!$B:$J,9,FALSE) -> 否

Sheet 党务及思政人员1
A1: 贵州师范大学2024年公开招聘工作人员党务及思政人员1岗位总成绩
A2: 序号 | B2: 姓名 | C2: 报考岗位 | D2: 岗位代码 | E2: 准考证号 | F2: 总成绩 | G2: 是否进入 体检环节
A3: 1 | B3: 袁云坚 | C3: 党务及思政人员1 | D3: 22828440103 | E3: 1152281108325 | F3: =VLOOKUP(B3,[1]党务及思政人员1!$B:$I,8,FALSE) -> 76.22 | G3: =VLOOKUP(B3,[1]党务及思政人员1!$B:$J,9,FALSE) -> 是
A4: 2 | B4: 童洁 | C4: 党务及思政人员1 | D4: 22828440103 | E4: 1152281111807 | F4: 面试缺考 | G4: =VLOOKUP(B4,[1]党务及思政人员1!$B:$J,9,FALSE) -> 否
A5: 3 | B5: 赵倩 | C5: 党务及思政人员1 | D5: 22828440103 | E5: 1152281304220 | F5: =VLOOKUP(B5,[1]党务及思政人员1!$B:$I,8,FALSE) -> 75.36 | G5: =VLOOKUP(B5,[1]党务及思政人员1!$B:$J,9,FALSE) -> 是
A6: 4 | B6: 何易 | C6: 党务及思政人员1 | D6: 22828440103 | E6: 1152281107906 | F6: =VLOOKUP(B6,[1]党务及思政人员1!$B:$I,8,FALSE) -> 73.58 | G6: =VLOOKUP(B6,[1]党务及思政人员1!$B:$J,9,FALSE) -> 否
A7: 5 | B7: 晏印雪 | C7: 党务及思政人员1 | D7: 22828440103 | E7: 1152281108526 | F7: =VLOOKUP(B7,[1]党务及思政人员1!$B:$I,8,FALSE) -> 75.25 | G7: =VLOOKUP(B7,[1]党务及思政人员1!$B:$J,9,FALSE) -> 否
A8: 6 | B8: 费丽珊 | C8: 党务及思政人员1 | D8: 22828440103 | E8: 1152281110419 | F8: =VLOOKUP(B8,[1]党务及思政人员1!$B:$I,8,FALSE) -> 73.51 | G8: =VLOOKUP(B8,[1]党务及思政人员1!$B:$J,9,FALSE) -> 否

Sheet 党务及思政人员2
A1: 贵州师范大学2024年公开招聘工作人员党务及思政人员2岗位总成绩
A2: 序号 | B2: 姓名 | C2: 报考岗位 | D2: 岗位代码 | E2: 准考证号 | F2: 总成绩 | G2: 是否进入 体检环节
A3: 1 | B3: 王诗宜 | C3: 党务及思政人员2 | D3: 22828440104 | E3: 1152281304730 | F3: =VLOOKUP(B3,[1]党务及思政人员2!$B:$I,8,FALSE) -> 76.08 | G3: =VLOOKUP(B3,[1]党务及思政人员2!$B:$J,9,FALSE) -> 是
A4: 2 | B4: 贾琪 | C4: 党务及思政人员2 | D4: 22828440104 | E4: 1152281301512 | F4: =VLOOKUP(B4,[1]党务及思政人员2!$B:$I,8,FALSE) -> 74.52 | G4: =VLOOKUP(B4,[1]党务及思政人员2!$B:$J,9,FALSE) -> 否
A5: 3 | B5: 王锴欣 | C5: 党务及思政人员2 | D5: 22828440104 | E5: 1152281307208 | F5: =VLOOKUP(B5,[1]党务及思政人员2!$B:$I,8,FALSE) -> 80.45 | G5: =VLOOKUP(B5,[1]党务及思政人员2!$B:$J,9,FALSE) -> 是
A6: 4 | B6: 李晨瑜 | C6: 党务及思政人员2 | D6: 22828440104 | E6: 1152281305306 | F6: 面试缺考 | G6: =VLOOKUP(B6,[1]党务及思政人员2!$B:$J,9,FALSE) -> 否
A7: 5 | B7: 刘恒丹青 | C7: 党务及思政人员2 | D7: 22828440104 | E7: 1152281307612 | F7: =VLOOKUP(B7,[1]党务及思政人员2!$B:$I,8,FALSE) -> 71.66 | G7: =VLOOKUP(B7,[1]党务及思政人员2!$B:$J,9,FALSE) -> 否
A8: 6 | B8: 李树瑶 | C8: 党务及思政人员2 | D8: 22828440104 | E8: 1152281305022 | F8: =VLOOKUP(B8,[1]党务及思政人员2!$B:$I,8,FALSE) -> 74.47 | G8: =VLOOKUP(B8,[1]党务及思政人员2!$B:$J,9,FALSE) -> 否
A9: 7 | B9: 张加欣 | C9: 党务及思政人员2 | D9: 22828440104 | E9: 1152281300518 | F9: =VLOOKUP(B9,[1]党务及思政人员2!$B:$I,8,FALSE) -> 75.83 | G9: =VLOOKUP(B9,[1]党务及思政人员2!$B:$J,9,FALSE) -> 是
A10: 8 | B10: 张爱琳 | C10: 党务及思政人员2 | D10: 22828440104 | E10: 1152281307412 | F10: =VLOOKUP(B10,[1]党务及思政人员2!$B:$I,8,FALSE) -> 74.89 | G10: =VLOOKUP(B10,[1]党务及思政人员2!$B:$J,9,FALSE) -> 否
A11: 9 | B11: 张佳蓉 | C11: 党务及思政人员2 | D11: 22828440104 | E11: 1152281301613 | F11: =VLOOKUP(B11,[1]党务及思政人员2!$B:$I,8,FALSE) -> 74.70 | G11: =VLOOKUP(B11,[1]党务及思政人员2!$B:$J,9,FALSE) -> 否
A12: 10 | B12: 李静 | C12: 党务及思政人员2 | D12: 22828440104 | E12: 1152281303721 | F12: 面试缺考 | G12: =VLOOKUP(B12,[1]党务及思政人员2!$B:$J,9,FALSE) -> 否
A13: 11 | B13: 彭明丽 | C13: 党务及思政人员2 | D13: 22828440104 | E13: 1152281301221 | F13: =VLOOKUP(B13,[1]党务及思政人员2!$B:$I,8,FALSE) -> 77.54 | G13: =VLOOKUP(B13,[1]党务及思政人员2!$B:$J,9,FALSE) -> 是
A14: 12 | B14: 孙月池 | C14: 党务及思政人员2 | D14: 22828440104 | E14: 1152281300102 | F14: =VLOOKUP(B14,[1]党务及思政人员2!$B:$I,8,FALSE) -> 73.32 | G14: =VLOOKUP(B14,[1]党务及思政人员2!$B:$J,9,FALSE) -> 否
A15: 13 | B15: 任雨欣 | C15: 党务及思政人员2 | D15: 22828440104 | E15: 1152281304528 | F15: =VLOOKUP(B15,[1]党务及思政人员2!$B:$I,8,FALSE) -> 77.84 | G15: =VLOOKUP(B15,[1]党务及思政人员2!$B:$J,9,FALSE) -> 是
A16: 14 | B16: 殷兰 | C16: 党务及思政人员2 | D16: 22828440104 | E16: 1152281302210 | F16: =VLOOKUP(B16,[1]党务及思政人员2!$B:$I,8,FALSE) -> 69.08 | G16: =VLOOKUP(B16,[1]党务及思政人员2!$B:$J,9,FALSE) -> 否
A17: 15 | B17: 丁家铭 | C17: 党务及思政人员2 | D17: 22828440104 | E17: 1152281301527 | F17: =VLOOKUP(B17,[1]党务及思政人员2!$B:$I,8,FALSE) -> 76.63 | G17: =VLOOKUP(B17,[1]党务及思政人员2!$B:$J,9,FALSE) -> 是
A18: 16 | B18: 周雅燚 | C18: 党务及思政人员2 | D18: 22828440104 | E18: 1152281305718 | F18: =VLOOKUP(B18,[1]党务及思政人员2!$B:$I,8,FALSE) -> 71.69 | G18: =VLOOKUP(B18,[1]党务及思政人员2!$B:$J,9,FALSE) -> 否
A19: 17 | B19: 吴春丽 | C19: 党务及思政人员2 | D19: 22828440104 | E19: 1152281300825 | F19: =VLOOKUP(B19,[1]党务及思政人员2!$B:$I,8,FALSE) -> 69.17 | G19: =VLOOKUP(B19,[1]党务及思政人员2!$B:$J,9,FALSE) -> 否
A20: 18 | B20: 平叶帆 | C20: 党务及思政人员2 | D20: 22828440104 | E20: 1152281309002 | F20: =VLOOKUP(B20,[1]党务及思政人员2!$B:$I,8,FALSE) -> 74.02 | G20: =VLOOKUP(B20,[1]党务及思政人员2!$B:$J,9,FALSE) -> 否
